bitfinex/quotes_BTCUSD_20230115
["timestamp","ask_amount","ask_price","bid_price","bid_amount"]
[1673783314468,0.0602014,20703.0,20702.0,1.98966201]
[1673783314774,0.0512014,20703.0,20702.0,1.98966201]
[1673783315290,0.0602014,20703.0,20702.0,1.84597566]
[1673783315550,0.0602014,20703.0,20702.0,1.62892891]
[1673783316064,0.0512014,20703.0,20702.0,1.47824191]
[1673783316324,0.1332014,20703.0,20702.0,1.62892891]
[1673783316581,0.1332014,20703.0,20702.0,1.84597566]
[1673783317114,0.1332014,20703.0,20702.0,1.99148781]
[1673783318421,0.13310364,20703.0,20702.0,1.84080081]
[1673783318698,0.13310364,20703.0,20702.0,1.99148781]
[1673783320548,0.13310364,20703.0,20702.0,2.29148781]
[1673783321041,0.13310364,20703.0,20702.0,2.14678607]
[1673783322026,0.13310364,20703.0,20702.0,2.43582404]
[1673783322265,0.13310364,20703.0,20702.0,2.21877729]
[1673783322498,0.13310364,20703.0,20702.0,2.43586271]
[1673783322746,0.13310364,20703.0,20702.0,1.85132712]
[1673783322993,0.13310364,20703.0,20702.0,2.3038622]
[1673783324030,0.13310364,20703.0,20702.0,2.0038622]
[1673783324291,0.13310364,20703.0,20702.0,2.2209437]
[1673783324824,0.13321364,20703.0,20702.0,2.2209437]
[1673783325592,0.13321364,20703.0,20702.0,1.93190573]
[1673783325850,0.13321364,20703.0,20702.0,2.07664102]
[1673783326392,0.13321364,20703.0,20702.0,1.56336037]
[1673783326620,0.13321364,20703.0,20702.0,1.78044187]
[1673783326875,0.13321364,20703.0,20702.0,1.92657943]
[1673783327404,0.05121364,20703.0,20702.0,1.56336037]
[1673783327700,0.13321364,20703.0,20702.0,1.78044187]
[1673783327921,0.13321364,20703.0,20702.0,1.56336037]
[1673783328698,0.13321364,20703.0,20702.0,1.92660018]
[1673783329441,0.13321364,20703.0,20702.0,2.07728718]
[1673783329691,0.05121364,20703.0,20702.0,2.07728718]
[1673783329952,0.05121364,20703.0,20702.0,2.22158986]
[1673783330277,0.13321364,20703.0,20702.0,2.52158986]
[1673783330492,0.13321364,20703.0,20702.0,2.30450836]
[1673783330747,0.13321364,20703.0,20702.0,2.66608615]
[1673783331006,0.13321364,20703.0,20702.0,2.30450836]
[1673783331291,0.13321364,20703.0,20702.0,2.21539915]
[1673783331545,0.13321364,20703.0,20702.0,2.0710102]
[1673783331798,0.13321364,20703.0,20702.0,2.2216972]
[1673783332060,0.13321364,20703.0,20702.0,2.0710102]
[1673783332323,0.13321364,20703.0,20702.0,2.22169732]
[1673783332583,0.13321364,20703.0,20702.0,2.00450836]
[1673783333090,0.13321364,20703.0,20702.0,2.21539915]
[1673783333347,0.13321364,20703.0,20702.0,2.36608615]
[1673783333606,0.13321364,20703.0,20702.0,2.00450836]
[1673783333864,0.13321364,20703.0,20702.0,2.36608615]
[1673783335576,0.13321364,20703.0,20702.0,2.21539915]
[1673783335578,0.13321364,20703.0,20702.0,1.85382136]
[1673783336024,0.13321364,20703.0,20702.0,2.21539915]
[1673783336239,0.13321364,20703.0,20702.0,2.36608615]
[1673783336778,0.13321364,20703.0,20702.0,2.30450836]
[1673783337035,0.13321364,20703.0,20702.0,2.66608615]
[1673783337302,0.13321364,20703.0,20702.0,2.37704818]
[1673783338086,0.13321364,20703.0,20702.0,2.37313969]
[1673783339395,0.13321364,20703.0,20702.0,2.66278055]
[1673783339654,0.13312128,20703.0,20702.0,2.36278055]
[1673783339919,0.13312128,20703.0,20702.0,2.21209355]
[1673783340435,0.13312128,20703.0,20702.0,2.36278055]
[1673783340699,0.13312128,20703.0,20702.0,2.66278055]
[1673783341737,0.13312128,20703.0,20702.0,2.36278055]
[1673783342799,0.13312128,20703.0,20702.0,2.06775642]
[1673783343529,0.13312128,20703.0,20702.0,1.85051576]
[1673783343789,0.13312128,20703.0,20702.0,2.00120276]
[1673783344318,0.13312128,20703.0,20702.0,1.85051576]
[1673783344567,0.13312128,20703.0,20702.0,2.21844107]
[1673783345087,0.13312128,20703.0,20702.0,2.06775407]
[1673783346138,0.13312128,20703.0,20702.0,2.21844107]
[1673783346396,0.13312128,20703.0,20702.0,2.00120276]
[1673783346944,0.13312128,20703.0,20702.0,1.85051576]
[1673783347208,0.13312128,20703.0,20702.0,2.00120276]
[1673783348263,0.13312128,20703.0,20702.0,1.85051576]
[1673783348785,0.13312128,20703.0,20702.0,2.00120276]
[1673783349036,0.13312128,20703.0,20702.0,1.85051576]
[1673783350074,0.13312128,20703.0,20702.0,2.06778701]
[1673783350587,0.13312128,20703.0,20702.0,1.77814615]
[1673783350851,0.13312128,20703.0,20702.0,2.06778701]
[1673783351355,0.13312128,20703.0,20702.0,1.77814615]
[1673783352388,0.13312128,20703.0,20702.0,2.06778701]
[1673783352648,0.13312128,20703.0,20702.0,1.77814615]
[1673783353417,0.13312128,20703.0,20702.0,1.92299279]
[1673783353694,0.13312128,20703.0,20702.0,1.77814615]
[1673783353930,0.13312128,20703.0,20702.0,1.92299297]
[1673783355209,0.13442701,20703.0,20702.0,1.92299297]
[1673783355467,0.13312128,20703.0,20702.0,1.92299297]
[1673783357296,0.05112128,20703.0,20702.0,1.92299297]
[1673783357575,0.13312128,20703.0,20702.0,1.55956341]
[1673783357824,0.13442701,20703.0,20702.0,1.55956341]
[1673783358365,0.13312128,20703.0,20702.0,1.55956341]
[1673783358624,0.13312128,20703.0,20702.0,1.77683466]
[1673783358917,0.13442701,20703.0,20702.0,0.93167159]
[1673783359172,0.45570101,20703.0,20702.0,0.93167159]
[1673783360981,0.45570101,20703.0,20702.0,0.483045]
[1673783361550,0.56190982,20703.0,20702.0,0.483045]
[1673783361759,0.47990982,20703.0,20702.0,0.483045]
[1673783362018,0.56190982,20703.0,20702.0,0.483045]
[1673783362550,1.02718469,20703.0,20702.0,0.483045]
[1673783363564,0.94518469,20703.0,20702.0,0.483045]
[1673783363825,0.80118382,20703.0,20702.0,0.483045]
[1673783364311,0.80118382,20703.0,20702.0,0.48295847]
[1673783364557,0.88418382,20703.0,20702.0,0.48295847]
[1673783364804,0.47860409,20703.0,20702.0,0.48295847]
[1673783365057,0.56160409,20703.0,20702.0,0.48295847]
[1673783367637,0.88287809,20703.0,20702.0,0.48295847]
[1673783368137,0.79987809,20703.0,20702.0,0.48295847]
[1673783368401,0.93387809,20703.0,20702.0,0.48295847]
[1673783368679,0.93518382,20703.0,20702.0,0.48295847]
[1673783369275,1.07918469,20703.0,20702.0,0.48295847]
[1673783370025,0.93518382,20703.0,20702.0,0.48295847]
[1673783370793,0.67869382,20703.0,20702.0,0.48295847]
[1673783371057,0.63035709,20703.0,20702.0,0.48295847]
[1673783372355,0.63166282,20703.0,20702.0,0.48295847]
[1673783373329,0.20287428,20703.0,20702.0,0.96600347]
[1673783373590,0.06887428,20703.0,20702.0,1.38123702]
[1673783373838,0.20287428,20703.0,20702.0,1.67677084]
[1673783374135,0.06887428,20703.0,20702.0,1.52608384]
[1673783374399,0.20287428,20703.0,20702.0,1.52608384]
[1673783374611,0.06887428,20703.0,20702.0,1.52608384]
[1673783374876,0.20287428,20703.0,20702.0,1.52608384]
[1673783375150,0.20287428,20703.0,20702.0,1.38123702]
[1673783375420,0.20287428,20703.0,20702.0,1.3794555]
[1673783375693,0.06887428,20703.0,20702.0,1.3794555]
[1673783376163,0.07018001,20703.0,20702.0,1.52430232]
[1673783376408,0.06887428,20703.0,20702.0,1.52430232]
[1673783376654,0.07787428,20703.0,20702.0,1.3794555]
[1673783376905,0.06887428,20703.0,20702.0,1.3794555]
[1673783377379,0.06887428,20703.0,20702.0,1.52430232]
[1673783378163,0.07787428,20703.0,20702.0,1.52430232]
[1673783378695,0.07787428,20703.0,20702.0,1.3794555]
[1673783379725,0.07787428,20703.0,20702.0,1.37766603]
[1673783380195,0.06887428,20703.0,20702.0,1.37766603]
[1673783380445,0.07787428,20703.0,20702.0,1.37766603]
[1673783380699,0.07787428,20703.0,20702.0,1.52251285]
[1673783381526,0.07787428,20703.0,20702.0,1.37766603]
[1673783382300,0.07787428,20703.0,20702.0,1.52251285]
[1673783382811,0.07918001,20703.0,20702.0,1.52251285]
[1673783383081,0.07787428,20703.0,20702.0,1.52251285]
[1673783383319,0.07787428,20703.0,20702.0,1.37766603]
[1673783383815,0.07787428,20703.0,20702.0,1.37405735]
[1673783384566,0.07787428,20703.0,20702.0,1.37225796]
[1673783384818,0.07787428,20703.0,20702.0,1.37045857]
[1673783386356,0.07918001,20703.0,20702.0,1.37045857]
[1673783387139,0.07787428,20703.0,20702.0,1.37045857]
[1673783387385,0.07918001,20703.0,20702.0,1.37045857]
[1673783387641,0.07787428,20703.0,20702.0,0.88741357]
[1673783388383,0.07918001,20703.0,20702.0,0.88741357]
[1673783388911,0.07787428,20703.0,20702.0,0.88741357]
[1673783390724,0.06887428,20703.0,20702.0,0.88741357]
[1673783391221,0.07787428,20703.0,20702.0,0.88741357]
[1673783391483,0.07787428,20703.0,20702.0,1.51530539]
[1673783391737,0.07787428,20703.0,20702.0,1.66599239]
[1673783391989,0.07787428,20703.0,20702.0,1.73257664]
[1673783392240,0.06887428,20703.0,20702.0,1.73257664]
[1673783392509,0.07787428,20703.0,20702.0,1.73257664]
[1673783392770,0.06887428,20703.0,20702.0,1.73257664]
[1673783393024,0.07787428,20703.0,20702.0,1.86176858]
[1673783393554,0.07787428,20703.0,20702.0,1.73079071]
[1673783394316,0.07787428,20703.0,20702.0,1.51351946]
[1673783394802,0.07918001,20703.0,20702.0,1.51351946]
[1673783395321,0.07787428,20703.0,20702.0,1.51351946]
[1673783395833,0.07918001,20703.0,20702.0,1.36867264]
[1673783396116,0.07787428,20703.0,20702.0,1.36867264]
[1673783396350,0.07787428,20703.0,20702.0,0.88562764]
[1673783396603,0.39914828,20703.0,20702.0,0.88562764]
[1673783396856,0.40045401,20703.0,20702.0,0.88562764]
[1673783397107,0.40045401,20703.0,20702.0,0.47039409]
[1673783397358,0.88358365,20703.0,20702.0,0.47039409]
[1673783397618,0.88358365,20703.0,20702.0,0.46857606]
[1673783398639,0.87458365,20703.0,20702.0,0.46857606]
[1673783398890,0.56100392,20703.0,20702.0,0.46857606]
[1673783399417,0.88227792,20703.0,20702.0,0.46857606]
[1673783399891,0.56100392,20703.0,20702.0,0.46857606]
[1673783400943,0.88227792,20703.0,20702.0,0.46857606]
[1673783401449,0.88174692,20703.0,20702.0,0.46857606]
[1673783401671,0.56047292,20703.0,20702.0,0.46857606]
[1673783401922,0.88174692,20703.0,20702.0,0.46857606]
[1673783402357,0.88305265,20703.0,20702.0,0.46857606]
[1673783402816,1.02705352,20703.0,20702.0,0.46857606]
[1673783403036,1.02574779,20703.0,20702.0,0.46857606]
[1673783403258,0.88174692,20703.0,20702.0,0.46857606]
[1673783403528,0.88305265,20703.0,20702.0,0.46857606]
[1673783403813,0.88174692,20703.0,20702.0,0.46857606]
[1673783404085,0.88174692,20703.0,20701.0,0.483046]
[1673783404086,1.24172487,20703.0,20701.0,0.483046]
[1673783404350,0.21066521,20702.0,20700.0,0.9112107]
[1673783404603,0.7050484,20703.0,20700.0,1.27332877]
[1673783404859,0.56047292,20703.0,20700.0,1.27332877]
[1673783405149,0.6960484,20703.0,20700.0,1.27332877]
[1673783405398,0.01030573,20702.0,20700.0,1.27332877]
[1673783405657,0.55147292,20703.0,20700.0,1.75641977]
[1673783405921,0.56047292,20703.0,20700.0,1.75641977]
[1673783406194,0.42416786,20702.0,20700.0,1.53914852]
[1673783406456,0.05025618,20701.0,20700.0,1.53914852]
[1673783406681,0.05025618,20701.0,20700.0,1.75641977]
[1673783406965,0.05025618,20701.0,20700.0,1.57927168]
[1673783407805,0.05025618,20701.0,20700.0,1.79654293]
[1673783407970,0.05025618,20701.0,20700.0,2.07863523]
[1673783408227,0.05925618,20701.0,20700.0,2.07863523]
[1673783408490,0.009,20701.0,20700.0,2.22342927]
[1673783408713,0.009,20701.0,20700.0,1.93378841]
[1673783409190,0.009,20701.0,20700.0,2.22342927]
[1673783411503,0.009,20701.0,20700.0,1.93378841]
[1673783411735,0.009,20701.0,20700.0,1.92785978]
[1673783411992,0.009,20701.0,20700.0,1.57920323]
[1673783413275,0.56754929,20702.0,20700.0,0.483091]
[1673783413526,0.4034541,20701.0,20700.0,0.483091]
[1673783414304,0.3944541,20701.0,20700.0,0.483091]
[1673783414565,0.4034541,20701.0,20700.0,0.483091]
[1673783414820,0.4034541,20701.0,20700.0,0.62786937]
[1673783415361,0.4034541,20701.0,20700.0,0.483091]
[1673783417783,0.4034541,20701.0,20700.0,0.62786937]
[1673783418689,0.4034541,20701.0,20700.0,0.483091]
[1673783419255,0.009,20701.0,20700.0,0.62786937]
[1673783419476,0.009,20701.0,20700.0,0.483091]
[1673783420244,0.009,20701.0,20699.0,1.67544296]
[1673783420734,0.44465257,20701.0,20699.0,1.53066459]
[1673783421470,0.43565257,20701.0,20699.0,1.53066459]
[1673783421701,0.44765257,20701.0,20699.0,1.53066459]
[1673783423010,0.44765257,20701.0,20699.0,1.53036459]
[1673783423264,0.43565257,20701.0,20699.0,0.84484094]
[1673783423519,0.44765257,20701.0,20699.0,0.84484094]
[1673783423779,0.43565257,20701.0,20699.0,0.84484094]
[1673783424558,0.51865257,20701.0,20699.0,0.36174894]
[1673783425087,0.321274,20700.0,20699.0,0.36174894]
[1673783425367,0.43565257,20701.0,20699.0,0.36174894]
[1673783426134,0.51865257,20701.0,20699.0,0.36174894]
[1673783426391,0.43565257,20701.0,20699.0,0.36174894]
[1673783426648,0.51865257,20701.0,20699.0,0.36174894]
[1673783426970,0.43565257,20701.0,20699.0,0.36174894]
[1673783427166,0.51865257,20701.0,20699.0,0.36174894]
[1673783427960,0.43565257,20701.0,20699.0,0.36174894]
[1673783428453,0.51865257,20701.0,20699.0,0.36174894]
[1673783428703,0.82354951,20700.0,20698.0,0.01286396]
[1673783428958,0.064784,20699.0,20698.0,0.44077125]
[1673783429226,0.50221551,20700.0,20698.0,0.44077125]
[1673783429720,0.51121551,20700.0,20698.0,0.44077125]
[1673783430501,0.51252124,20700.0,20698.0,0.44077125]
[1673783431006,0.50352124,20700.0,20698.0,0.44077125]
[1673783431253,0.51252124,20700.0,20698.0,0.44077125]
[1673783433087,0.009,20700.0,20699.0,0.38229896]
[1673783433508,0.47458054,20701.0,20699.0,0.38229896]
[1673783433720,0.009,20700.0,20699.0,0.38229896]
[1673783433946,0.47458054,20701.0,20699.0,0.38229896]
[1673783434394,0.083,20700.0,20699.0,0.38229896]
[1673783436201,0.61915602,20701.0,20699.0,0.38229896]
[1673783436206,0.70215602,20701.0,20699.0,0.38229896]
[1673783436463,0.00130573,20700.0,20699.0,0.38229896]
[1673783436711,0.08430573,20700.0,20699.0,0.38229896]
[1673783436987,0.61915602,20701.0,20699.0,0.38229896]
[1673783437255,0.083,20700.0,20699.0,0.38229896]
[1673783437509,0.00130573,20700.0,20699.0,0.38229896]
[1673783437755,0.08430573,20700.0,20699.0,0.38229896]
[1673783437999,0.00130573,20700.0,20699.0,0.38229896]
[1673783439288,0.00130573,20700.0,20699.0,0.38129896]
[1673783439551,0.08430573,20700.0,20699.0,0.38129896]
[1673783441052,0.40557973,20700.0,20699.0,0.38129896]
[1673783441299,0.40557973,20700.0,20698.0,0.49599796]
[1673783441553,0.064784,20699.0,20698.0,0.49599796]
[1673783441810,0.00130573,20700.0,20698.0,0.49599796]
[1673783442074,0.13530573,20700.0,20698.0,0.49599796]
[1673783442332,0.00130573,20700.0,20698.0,0.01286396]
[1673783442563,0.00130573,20700.0,20698.0,0.37179182]
[1673783442564,0.134,20699.0,20698.0,0.37179182]
[1673783442812,0.00130573,20700.0,20698.0,0.37179182]
[1673783443062,0.13530573,20700.0,20698.0,0.37179182]
[1673783443812,0.00130573,20700.0,20698.0,0.37179182]
[1673783445634,0.5893718,20700.0,20698.0,0.37179182]
[1673783445893,0.321274,20699.0,20698.0,0.37179182]
[1673783446212,0.73394728,20700.0,20698.0,0.37179182]
[1673783446950,0.59994728,20700.0,20698.0,0.37179182]
[1673783447473,0.14457548,20701.0,20698.0,0.37179182]
[1673783447729,0.85185834,20702.0,20699.0,0.45154614]
[1673783447979,0.36007845,20701.0,20699.0,0.45154614]
[1673783448491,0.50465393,20701.0,20699.0,0.45154614]
[1673783448752,0.36007845,20701.0,20699.0,0.45154614]
[1673783449014,0.00120573,20700.0,20699.0,0.45154614]
[1673783449264,0.00120573,20700.0,20698.0,0.64077333]
[1673783449265,0.00120573,20700.0,20698.0,0.49599496]
[1673783449518,0.00120573,20700.0,20698.0,0.87606191]
[1673783450288,0.00120573,20700.0,20698.0,0.39293091]
[1673783450539,0.55920549,20700.0,20698.0,0.39293091]
[1673783451556,0.69320549,20700.0,20698.0,0.39293091]
[1673783452322,0.54863001,20700.0,20698.0,0.39293091]
[1673783453611,0.69320549,20700.0,20698.0,0.39293091]
[1673783453861,0.54863001,20700.0,20698.0,0.39293091]
[1673783454635,0.41463001,20700.0,20698.0,0.39293091]
[1673783454886,0.69320549,20700.0,20698.0,0.39293091]
[1673783456415,0.321274,20699.0,20698.0,0.39293091]
[1673783456677,0.77518257,20700.0,20698.0,0.39293091]
[1673783457193,0.55920549,20700.0,20698.0,0.39293091]
[1673783457468,0.69320549,20700.0,20698.0,0.39293091]
[1673783457722,0.321274,20699.0,20698.0,0.01286396]
[1673783458215,0.36055256,20701.0,20699.0,0.42922034]
[1673783458472,0.134,20700.0,20699.0,0.79128567]
[1673783458725,0.134,20700.0,20699.0,2.04707557]
[1673783459296,0.134,20700.0,20699.0,2.19192235]
[1673783459817,0.82232463,20703.0,20699.0,2.19192235]
[1673783460092,0.083,20701.0,20700.0,0.14478336]
[1673783460323,0.60634755,20703.0,20700.0,0.14478336]
[1673783460619,0.60634755,20703.0,20700.0,0.62787436]
[1673783461656,0.00120573,20702.0,20700.0,0.62787436]
[1673783462142,0.00120573,20702.0,20701.0,0.40738592]
[1673783463443,0.16243848,20703.0,20701.0,0.89045392]
[1673783463699,0.16243848,20703.0,20702.0,0.15069]
[1673783463700,0.017863,20703.0,20702.0,0.15069]
[1673783463950,0.017863,20703.0,20701.0,1.03523728]
[1673783464211,0.017863,20703.0,20702.0,0.483045]
[1673783464469,0.017863,20703.0,20702.0,0.96609]
[1673783464726,0.017863,20703.0,20702.0,1.37793177]
[1673783464985,0.151863,20703.0,20702.0,1.52271513]
[1673783465249,0.151863,20703.0,20702.0,1.37793177]
[1673783465777,0.017863,20703.0,20702.0,1.52861877]
[1673783466035,0.026863,20703.0,20702.0,1.52861877]
[1673783466287,0.017863,20703.0,20702.0,1.37793177]
[1673783466554,0.100863,20703.0,20702.0,2.19012009]
[1673783466848,0.100863,20703.0,20702.0,2.18504121]
[1673783467330,0.017863,20703.0,20702.0,2.38476272]
[1673783467594,0.026863,20703.0,20702.0,2.38476272]
[1673783467868,0.026863,20703.0,20702.0,1.56142222]
[1673783467869,0.017863,20703.0,20702.0,1.56142222]
[1673783468893,0.029863,20703.0,20702.0,1.56142222]
[1673783469157,0.026863,20703.0,20702.0,2.11437764]
[1673783469404,0.017863,20703.0,20702.0,2.11437764]
[1673783469660,0.017863,20703.0,20702.0,1.75899985]
[1673783469914,0.029863,20703.0,20702.0,1.75899985]
[1673783470174,0.01775966,20703.0,20702.0,1.26132369]
[1673783470434,0.02975966,20703.0,20702.0,1.66518071]
[1673783471663,0.22169134,20703.0,20702.0,1.36994702]
[1673783471941,0.03096539,20703.0,20702.0,0.88690202]
[1673783472187,0.03096539,20703.0,20702.0,0.40385702]
[1673783472188,0.01896539,20703.0,20702.0,0.40385702]
[1673783472436,0.35223939,20703.0,20701.0,0.483068]
[1673783472697,0.01775966,20703.0,20701.0,0.483068]
[1673783472962,0.02975966,20703.0,20701.0,0.93794809]
[1673783473200,0.51568962,20703.0,20701.0,0.93794809]
[1673783473447,0.52468962,20703.0,20701.0,0.93794809]
[1673783473699,0.00120573,20702.0,20701.0,0.93794809]
[1673783473943,0.52468962,20703.0,20701.0,0.93794809]
[1673783474934,0.52589535,20703.0,20701.0,0.93794809]
[1673783476455,0.51689535,20703.0,20701.0,0.93794809]
[1673783476702,0.52589535,20703.0,20701.0,0.93794809]
[1673783477220,0.52589535,20703.0,20701.0,0.45488009]
[1673783477472,0.79672748,20702.0,20700.0,0.38094722]
[1673783477734,0.47545348,20702.0,20700.0,0.38094722]
[1673783478763,0.48445348,20702.0,20700.0,0.38094722]
[1673783479012,0.47545348,20702.0,20700.0,0.38094722]
[1673783479293,0.55845348,20702.0,20700.0,0.38094722]
[1673783479556,0.321274,20701.0,20700.0,0.38094722]
[1673783479791,0.55845348,20702.0,20700.0,0.38094722]
[1673783480859,0.47545348,20702.0,20700.0,0.38094722]
[1673783481365,0.47545348,20702.0,20700.0,0.86403522]
[1673783481628,0.61045348,20702.0,20700.0,0.86403522]
[1673783487074,0.61045348,20702.0,20700.0,1.34712622]
[1673783487578,0.135,20702.0,20701.0,0.35452351]
[1673783488127,0.135,20702.0,20700.0,0.483091]
[1673783488392,0.135,20702.0,20700.0,0.88322899]
[1673783489418,0.00120573,20702.0,20700.0,0.88322899]
[1673783489692,0.13720573,20702.0,20700.0,0.88322899]
[1673783490002,0.136,20702.0,20700.0,0.88322899]
[1673783490702,0.37227574,20703.0,20700.0,0.88322899]
[1673783490995,0.135,20702.0,20700.0,0.88322899]
[1673783491483,0.38943163,20702.0,20700.0,0.88322899]
[1673783492498,0.52443163,20702.0,20700.0,0.88322899]
[1673783492758,0.321274,20701.0,20700.0,0.88322899]
[1673783493015,0.52563736,20702.0,20700.0,0.88322899]
[1673783493273,0.52443163,20702.0,20700.0,0.88322899]
[1673783493525,0.01775966,20703.0,20700.0,1.36631999]
[1673783493784,0.135,20701.0,20700.0,1.36631999]
[1673783494037,0.41077161,20702.0,20700.0,0.88322899]
[1673783494289,0.54577161,20702.0,20700.0,0.88322899]
[1673783494501,0.41077161,20702.0,20700.0,0.88322899]
[1673783494804,0.135,20701.0,20700.0,0.88322899]
[1673783495061,0.40956588,20702.0,20700.0,0.88322899]
[1673783495316,0.54456588,20702.0,20700.0,0.88322899]
[1673783496314,0.40956588,20702.0,20700.0,0.88322899]
[1673783496570,0.135,20701.0,20700.0,0.88322899]
[1673783496822,0.40956588,20702.0,20700.0,0.88322899]
[1673783497092,0.321274,20701.0,20700.0,0.88322899]
[1673783497686,0.54456588,20702.0,20700.0,0.88322899]
[1673783498380,0.40956588,20702.0,20700.0,0.88322899]
[1673783498603,0.41077161,20702.0,20700.0,0.88322899]
[1673783499175,0.40956588,20702.0,20700.0,0.88322899]
[1673783499447,0.135,20701.0,20700.0,0.88322899]
[1673783500731,0.41077161,20702.0,20700.0,0.88322899]
[1673783500983,0.135,20701.0,20700.0,0.88322899]
[1673783502245,0.41077161,20702.0,20700.0,0.88322899]
[1673783502556,0.54456588,20702.0,20700.0,0.88322899]
[1673783503049,0.40956588,20702.0,20700.0,0.88322899]
[1673783504357,0.321274,20701.0,20700.0,0.88322899]
[1673783504612,0.40956588,20702.0,20700.0,0.88322899]
[1673783505147,0.321274,20701.0,20700.0,0.88322899]
[1673783505456,0.40956588,20702.0,20700.0,0.88322899]
[1673783505660,0.49256588,20702.0,20700.0,0.88322899]
[1673783506175,0.49377161,20702.0,20700.0,0.88322899]
[1673783506439,0.41077161,20702.0,20700.0,0.88322899]
[1673783506686,0.49377161,20702.0,20700.0,0.88322899]
[1673783507684,0.63834709,20702.0,20700.0,0.88322899]
[1673783507935,0.49377161,20702.0,20700.0,0.88322899]
[1673783508190,0.41077161,20702.0,20700.0,0.88322899]
[1673783508454,0.49377161,20702.0,20700.0,0.88322899]
[1673783508705,0.49256588,20702.0,20700.0,0.88322899]
[1673783508969,0.083,20702.0,20700.0,1.36631999]
[1673783509212,0.01775966,20703.0,20701.0,0.150698]
[1673783509470,0.083,20702.0,20701.0,0.483062]
[1673783509724,0.16233514,20703.0,20701.0,0.483062]
[1673783509998,0.22878121,20702.0,20700.0,0.483091]
[1673783510282,0.321274,20701.0,20700.0,0.483091]
[1673783510773,0.49496754,20701.0,20700.0,0.483091]
[1673783511028,0.81624154,20701.0,20700.0,0.483091]
[1673783511293,0.49496754,20701.0,20700.0,0.483091]
[1673783511557,0.96073256,20701.0,20699.0,0.9627142]
[1673783511808,0.064784,20700.0,20699.0,0.9627142]
[1673783512057,0.72245856,20701.0,20699.0,0.9627142]
[1673783512314,0.63945856,20701.0,20699.0,0.9627142]
[1673783512573,0.49488308,20701.0,20699.0,1.59037589]
[1673783512827,0.50388308,20701.0,20699.0,1.59037589]
[1673783513119,0.14457548,20702.0,20700.0,0.48795633]
[1673783513341,0.009,20701.0,20700.0,0.98216023]
[1673783513599,0.009,20701.0,20700.0,2.09905023]
[1673783513868,0.009,20701.0,20700.0,1.95450354]
[1673783514145,0.009,20701.0,20700.0,2.2441444]
[1673783514403,0.01775966,20703.0,20700.0,2.2441444]
[1673783514661,0.012,20702.0,20701.0,0.14478685]
[1673783514924,0.01775966,20703.0,20701.0,1.11092285]
[1673783515754,0.02675966,20703.0,20701.0,1.11092285]
[1673783516018,0.01775966,20703.0,20702.0,0.14478685]
[1673783516273,0.10075966,20703.0,20702.0,1.26156485]
[1673783516536,0.10075966,20703.0,20702.0,1.75771753]
[1673783516788,0.10075966,20703.0,20702.0,1.90840453]
[1673783517078,0.10075966,20703.0,20702.0,1.69113328]
[1673783517332,0.01775966,20703.0,20702.0,1.54044628]
[1673783517583,0.15175966,20703.0,20702.0,1.54044628]
[1673783518110,0.15175966,20703.0,20702.0,1.69113328]
[1673783521260,0.15175966,20703.0,20702.0,1.90840453]
[1673783521517,0.15175966,20703.0,20702.0,1.69113328]
[1673783522588,0.15175966,20703.0,20702.0,2.31538006]
[1673783522850,0.15175966,20703.0,20702.0,2.24296282]
[1673783523107,0.15175966,20703.0,20702.0,2.31489975]
[1673783523854,0.1365837,20703.0,20702.0,2.43902365]
[1673783523858,0.0025837,20703.0,20702.0,2.43902365]
[1673783524116,0.0105837,20703.0,20702.0,2.43902365]
[1673783524371,0.0105837,20703.0,20702.0,2.80040434]
[1673783525142,0.0105837,20703.0,20702.0,2.8004041]
[1673783525399,0.0105837,20703.0,20702.0,2.43902365]
[1673783525932,0.0105837,20703.0,20702.0,2.8001869]
[1673783526197,7e-07,20703.0,20702.0,2.8001869]
[1673783526431,0.00700489,20709.0,20703.0,0.1]
[1673783526716,0.00700489,20709.0,20704.0,3.18765493]
[1673783526973,0.00700489,20709.0,20705.0,0.85952873]
[1673783527250,0.00700489,20709.0,20706.0,1.448841]
[1673783527542,0.00120573,20708.0,20706.0,1.448841]
[1673783527799,0.40073734,20709.0,20706.0,1.448841]
[1673783528077,0.40073734,20709.0,20707.0,0.150637]
[1673783528346,0.51973734,20709.0,20708.0,0.96581]
[1673783528611,0.40073734,20709.0,20708.0,0.96581]
[1673783529440,0.00821062,20709.0,20708.0,0.96581]
[1673783529703,0.00700489,20709.0,20708.0,0.96581]
[1673783529977,0.12800489,20709.0,20708.0,0.96581]
[1673783530293,0.00700489,20709.0,20708.0,0.96581]
[1673783530577,0.12800489,20709.0,20708.0,0.96581]
[1673783530829,0.12800489,20709.0,20708.0,1.39092206]
[1673783533002,0.12800489,20709.0,20708.0,1.38977405]
[1673783536138,0.12800489,20709.0,20708.0,0.42511206]
[1673783536408,0.12921062,20709.0,20708.0,1.39092206]
[1673783537172,0.12800489,20709.0,20708.0,1.39092206]
[1673783537956,0.12800489,20709.0,20708.0,1.54154806]
[1673783539259,0.12800489,20709.0,20708.0,1.116436]
[1673783539528,0.12800489,20709.0,20708.0,1.82772448]
[1673783540545,0.00700489,20709.0,20708.0,1.82772448]
[1673783540797,0.01900489,20709.0,20708.0,1.82772448]
[1673783541280,0.01900489,20709.0,20708.0,2.2394526]
[1673783541544,0.05665495,20709.0,20708.0,1.82772448]
[1673783541816,0.06865495,20709.0,20708.0,1.82772448]
[1673783542310,0.06865495,20709.0,20708.0,1.52772448]
[1673783542559,0.06865495,20709.0,20708.0,1.91251358]
[1673783543592,0.06865495,20709.0,20708.0,1.82772448]
[1673783545153,0.05665495,20709.0,20708.0,1.82772448]
[1673783545406,0.06865495,20709.0,20708.0,1.82772448]
[1673783546684,0.05665495,20709.0,20708.0,2.20090146]
[1673783546913,0.06865495,20709.0,20708.0,1.82772448]
[1673783548712,0.05665495,20709.0,20708.0,1.82772448]
[1673783548974,0.06865495,20709.0,20708.0,1.82772448]
[1673783550751,0.06865495,20709.0,20708.0,1.47634038]
[1673783551267,0.05665495,20709.0,20708.0,1.47634038]
[1673783551519,0.06865495,20709.0,20708.0,1.77634038]
[1673783552068,0.06865495,20709.0,20708.0,1.416436]
[1673783552340,0.06865495,20709.0,20708.0,1.91025158]
[1673783552566,0.06865495,20709.0,20708.0,1.91875158]
[1673783553070,0.05665495,20709.0,20708.0,1.91875158]
[1673783553886,0.05665495,20709.0,20708.0,2.32484267]
[1673783554138,0.06865495,20709.0,20708.0,2.32480416]
[1673783554658,0.06865495,20709.0,20708.0,2.32484266]
[1673783555199,0.06865495,20709.0,20708.0,2.32487683]
[1673783555450,0.06865495,20709.0,20708.0,1.91875158]
[1673783556312,0.06865495,20709.0,20708.0,2.3247967]
[1673783556578,0.06853591,20709.0,20708.0,1.91875158]
[1673783557081,0.06853591,20709.0,20708.0,2.32479669]
[1673783557345,0.06853591,20709.0,20708.0,1.61875158]
[1673783558137,0.06853591,20709.0,20708.0,1.91875158]
[1673783558383,0.06853591,20709.0,20708.0,1.61875158]
[1673783558628,0.05653591,20709.0,20708.0,1.61875158]